[Event "Polofinale MCR junioru 2023"]
[Site "Czech Republic"]
[Date "2023.11.14"]
[Round "5.26"]
[White "Hrbek, Jachym"]
[Black "Mrazek, Adam"]
[Result "0-1"]
[TimeControl "90 min per 40 moves + 15 min + 30 sec / move from move 1"]
[WhiteFideId "23709138"]
[BlackFideId "23725010"]
[WhiteElo "1913"]
[BlackElo "1643"]

1. e4 {[%clk 01:30:55]} {[%emt 00:00:04]} e6 {[%clk 01:30:52]} {[%emt
00:00:09]} 2. Nf3 {[%clk 01:31:19]} {[%emt 00:00:06]} c5 {[%clk 01:30:34]}
{[%emt 00:00:48]} 3. b4 {[%clk 01:31:32]} {[%emt 00:00:17]} cxb4 {[%clk
01:21:54]} {[%emt 00:09:11]} 4. a3 {[%clk 01:31:47]} {[%emt 00:00:14]} b6
{[%clk 01:20:40]} {[%emt 00:01:44]} 5. axb4 {[%clk 01:31:00]} {[%emt 00:01:16]}
Bb7 {[%clk 01:20:35]} {[%emt 00:00:35]} 6. e5 {[%clk 01:29:36]} {[%emt
00:01:54]} Bxb4 {[%clk 01:12:50]} {[%emt 00:08:17]} 7. c3 {[%clk 01:29:43]}
{[%emt 00:00:22]} Be7 {[%clk 01:12:57]} {[%emt 00:00:24]} 8. d4 {[%clk
01:29:59]} {[%emt 00:00:14]} d6 {[%clk 00:58:21]} {[%emt 00:15:06]} 9. Bd3
{[%clk 01:27:16]} {[%emt 00:03:08]} Nd7 {[%clk 00:48:22]} {[%emt 00:10:34]} 10.
Bf4 {[%clk 01:23:58]} {[%emt 00:03:46]} dxe5 {[%clk 00:43:15]} {[%emt
00:05:39]} 11. Nxe5 {[%clk 01:24:04]} {[%emt 00:00:22]} Ngf6 {[%clk 00:41:29]}
{[%emt 00:02:18]} 12. Bb5 {[%clk 01:17:07]} {[%emt 00:07:24]} O-O {[%clk
00:34:58]} {[%emt 00:07:03]} 13. Bc6 {[%clk 01:07:05]} {[%emt 00:10:32]} Qc8
{[%clk 00:27:45]} {[%emt 00:07:44]} 14. Qf3 {[%clk 01:06:57]} {[%emt 00:00:36]}
Nxe5 {[%clk 00:25:14]} {[%emt 00:03:03]} 15. Bxe5 {[%clk 01:06:22]} {[%emt
00:01:03]} Qxc6 {[%clk 00:23:45]} {[%emt 00:02:00]} 16. Qxc6 {[%clk 01:06:27]}
{[%emt 00:00:25]} Bxc6 {[%clk 00:24:08]} {[%emt 00:00:07]} 17. O-O {[%clk
01:06:35]} {[%emt 00:00:22]} Rfd8 {[%clk 00:21:53]} {[%emt 00:02:45]} 18. Rc1
{[%clk 01:03:07]} {[%emt 00:03:57]} Bd6 {[%clk 00:20:45]} {[%emt 00:01:38]} 19.
Bxd6 {[%clk 01:02:55]} {[%emt 00:00:42]} Rxd6 {[%clk 00:20:33]} {[%emt
00:00:43]} 20. Nd2 {[%clk 01:02:50]} {[%emt 00:00:31]} Rdd8 {[%clk 00:12:52]}
{[%emt 00:08:14]} 21. Nc4 {[%clk 01:01:21]} {[%emt 00:01:59]} Ne4 {[%clk
00:11:35]} {[%emt 00:01:48]} 22. f3 {[%clk 00:59:30]} {[%emt 00:02:20]} Nd6
{[%clk 00:11:35]} {[%emt 00:00:30]} 23. Nd2 {[%clk 00:59:41]} {[%emt 00:00:19]}
b5 {[%clk 00:07:57]} {[%emt 00:04:09]} 24. Ra6 {[%clk 00:55:18]} {[%emt
00:04:52]} Bb7 {[%clk 00:07:01]} {[%emt 00:01:27]} 25. Ra5 {[%clk 00:55:37]}
{[%emt 00:00:10]} Nc4 {[%clk 00:06:31]} {[%emt 00:01:01]} 26. Nxc4 {[%clk
00:55:34]} {[%emt 00:00:33]} bxc4 {[%clk 00:06:55]} {[%emt 00:00:06]} 27. Rca1
{[%clk 00:55:45]} {[%emt 00:00:19]} a6 {[%clk 00:04:53]} {[%emt 00:02:33]} 28.
R1a4 {[%clk 00:55:55]} {[%emt 00:00:19]} Rdc8 {[%clk 00:04:03]} {[%emt
00:01:19]} 29. Rb4 {[%clk 00:54:48]} {[%emt 00:01:37]} Rc7 {[%clk 00:03:07]}
{[%emt 00:01:27]} 30. Raa4 {[%clk 00:54:45]} {[%emt 00:00:33]} Rac8 {[%clk
00:02:35]} {[%emt 00:01:02]} 31. Rb6 {[%clk 00:54:45]} {[%emt 00:00:30]} Kf8
{[%clk 00:02:34]} {[%emt 00:00:31]} 32. Rab4 {[%clk 00:54:48]} {[%emt
00:00:26]} Rb8 {[%clk 00:01:04]} {[%emt 00:02:01]} 33. Kf2 {[%clk 00:53:58]}
{[%emt 00:01:20]} Ke7 {[%clk 00:01:16]} {[%emt 00:00:18]} 34. Ke3 {[%clk
00:53:47]} {[%emt 00:00:42]} Kd7 {[%clk 00:00:47]} {[%emt 00:01:00]} 35. Kf4
{[%clk 00:53:56]} {[%emt 00:00:19]} a5 {[%clk 00:00:42]} {[%emt 00:00:35]} 36.
R4b5 {[%clk 00:53:26]} {[%emt 00:01:00]} a4 {[%clk 00:00:50]} {[%emt 00:00:23]}
37. Rb4 {[%clk 00:53:18]} {[%emt 00:00:38]} a3 {[%clk 00:01:04]} {[%emt
00:00:16]} 38. Ra4 {[%clk 00:53:39]} {[%emt 00:00:09]} Bc6 {[%clk 00:00:41]}
{[%emt 00:00:53]} 39. Rxb8 {[%clk 00:53:57]} {[%emt 00:00:12]} Bxa4 {[%clk
00:01:07]} {[%emt 00:00:04]} 40. Ra8 {[%clk 00:54:23]} {[%emt 00:00:04]} Bc2
{[%clk 00:00:41]} {[%emt 00:00:55]} 41. Rxa3 {[%clk 00:54:40]} {[%emt
00:00:14]} Rb7 {[%clk 00:00:56]} {[%emt 00:00:15]} 42. Ra2 {[%clk 00:54:41]}
{[%emt 00:00:28]} Bd3 {[%clk 00:00:40]} {[%emt 00:00:45]} 0-1

[Event "Polofinale MCR junioru 2023"]
[Site "Czech Republic"]
[Date "2023.11.14"]
[Round "5.27"]
[White "Andrle, Filip"]
[Black "Kocman, Patrik"]
[Result "1-0"]
[TimeControl "90 min per 40 moves + 15 min + 30 sec / move from move 1"]
[WhiteFideId "23718749"]
[BlackFideId "23735732"]
[WhiteElo "2005"]
[BlackElo "1478"]

1. e4 {[%clk 01:30:56]} {[%emt 00:00:02]} e5 {[%clk 01:30:53]} {[%emt
00:00:08]} 2. Nf3 {[%clk 01:31:18]} {[%emt 00:00:08]} Nc6 {[%clk 01:31:13]}
{[%emt 00:00:10]} 3. Bc4 {[%clk 01:31:31]} {[%emt 00:00:16]} Bc5 {[%clk
01:31:23]} {[%emt 00:00:21]} 4. d3 {[%clk 01:31:44]} {[%emt 00:00:17]} d6
{[%clk 01:30:51]} {[%emt 00:01:02]} 5. c3 {[%clk 01:31:36]} {[%emt 00:00:38]}
Nf6 {[%clk 01:31:06]} {[%emt 00:00:15]} 6. b4 {[%clk 01:31:48]} {[%emt
00:00:18]} Bb6 {[%clk 01:31:16]} {[%emt 00:00:20]} 7. a4 {[%clk 01:31:52]}
{[%emt 00:00:26]} a6 {[%clk 01:31:00]} {[%emt 00:00:47]} 8. O-O {[%clk
01:30:34]} {[%emt 00:01:48]} O-O {[%clk 01:30:41]} {[%emt 00:00:49]} 9. h3
{[%clk 01:30:35]} {[%emt 00:00:29]} Be6 {[%clk 01:28:19]} {[%emt 00:02:52]} 10.
Nbd2 {[%clk 01:29:20]} {[%emt 00:01:45]} h6 {[%clk 01:27:38]} {[%emt 00:01:12]}
11. Qb3 {[%clk 01:27:50]} {[%emt 00:01:56]} Qd7 {[%clk 01:24:38]} {[%emt
00:03:33]} 12. Bxe6 {[%clk 01:26:39]} {[%emt 00:01:42]} fxe6 {[%clk 01:22:35]}
{[%emt 00:02:32]} 13. Nc4 {[%clk 01:25:41]} {[%emt 00:01:28]} Ba7 {[%clk
01:22:03]} {[%emt 00:01:03]} 14. b5 {[%clk 01:24:11]} {[%emt 00:01:59]} axb5
{[%clk 01:19:55]} {[%emt 00:02:38]} 15. axb5 {[%clk 01:20:39]} {[%emt
00:04:02]} Ne7 {[%clk 01:19:07]} {[%emt 00:01:17]} 16. b6 {[%clk 01:19:01]}
{[%emt 00:02:09]} cxb6 {[%clk 01:18:34]} {[%emt 00:01:05]} 17. Ba3 {[%clk
01:11:25]} {[%emt 00:08:04]} Nc8 {[%clk 01:12:53]} {[%emt 00:06:12]} 18. Ra2
{[%clk 00:55:12]} {[%emt 00:16:43]} Bb8 {[%clk 00:56:01]} {[%emt 00:17:23]} 19.
Bxd6 {[%clk 00:48:05]} {[%emt 00:07:36]} Rxa2 {[%clk 00:52:59]} {[%emt
00:03:33]} 20. Bxf8 {[%clk 00:45:29]} {[%emt 00:03:05]} Ra6 {[%clk 00:52:04]}
{[%emt 00:01:24]} 21. Ncxe5 {[%clk 00:40:31]} {[%emt 00:05:29]} Qe8 {[%clk
00:48:14]} {[%emt 00:04:20]} 22. Bb4 {[%clk 00:39:47]} {[%emt 00:01:14]} Nd6
{[%clk 00:44:23]} {[%emt 00:04:21]} 23. Nc4 {[%clk 00:36:09]} {[%emt 00:04:08]}
Nf7 {[%clk 00:41:59]} {[%emt 00:02:54]} 24. Re1 {[%clk 00:34:12]} {[%emt
00:02:26]} g5 {[%clk 00:41:30]} {[%emt 00:01:00]} 25. e5 {[%clk 00:32:04]}
{[%emt 00:02:38]} Nd5 {[%clk 00:39:36]} {[%emt 00:02:24]} 26. Ne3 {[%clk
00:30:54]} {[%emt 00:01:39]} Nf4 {[%clk 00:38:11]} {[%emt 00:01:56]} 27. Ng4
{[%clk 00:30:10]} {[%emt 00:01:14]} Qc6 {[%clk 00:36:51]} {[%emt 00:01:50]} 28.
d4 {[%clk 00:23:23]} {[%emt 00:07:17]} h5 {[%clk 00:33:01]} {[%emt 00:04:20]}
29. Nf6+ {[%clk 00:22:12]} {[%emt 00:01:40]} Kg7 {[%clk 00:32:35]} {[%emt
00:00:56]} 30. Qb1 {[%clk 00:21:27]} {[%emt 00:01:15]} Ng6 {[%clk 00:29:53]}
{[%emt 00:03:13]} 31. Nxh5+ {[%clk 00:20:36]} {[%emt 00:01:21]} 1-0

[Event "Polofinale MCR junioru 2023"]
[Site "Czech Republic"]
[Date "2023.11.14"]
[Round "5.28"]
[White "Kulhanek, Jachym"]
[Black "Urbansky, Stepan"]
[Result "1-0"]
[TimeControl "90 min per 40 moves + 15 min + 30 sec / move from move 1"]
[WhiteFideId "23716193"]
[BlackFideId "23761741"]
[WhiteElo "2056"]
[BlackElo "1675"]

1. e4 {[%clk 01:30:57]} {[%emt 00:00:02]} c5 {[%clk 01:30:56]} {[%emt
00:00:05]} 2. c3 {[%clk 01:31:24]} {[%emt 00:00:03]} Nf6 {[%clk 01:31:22]}
{[%emt 00:00:04]} 3. e5 {[%clk 01:31:52]} {[%emt 00:00:03]} Nd5 {[%clk
01:31:44]} {[%emt 00:00:07]} 4. d4 {[%clk 01:32:18]} {[%emt 00:00:04]} cxd4
{[%clk 01:32:06]} {[%emt 00:00:08]} 5. Nf3 {[%clk 01:32:45]} {[%emt 00:00:03]}
e6 {[%clk 01:32:19]} {[%emt 00:00:16]} 6. cxd4 {[%clk 01:33:10]} {[%emt
00:00:05]} b6 {[%clk 01:32:42]} {[%emt 00:00:07]} 7. Nc3 {[%clk 01:31:53]}
{[%emt 00:01:47]} Nxc3 {[%clk 01:31:28]} {[%emt 00:01:45]} 8. bxc3 {[%clk
01:32:17]} {[%emt 00:00:06]} Bb7 {[%clk 01:31:50]} {[%emt 00:00:07]} 9. Bd3
{[%clk 01:32:13]} {[%emt 00:00:33]} Qc7 {[%clk 01:30:21]} {[%emt 00:01:59]} 10.
c4 {[%clk 01:28:52]} {[%emt 00:03:51]} d5 {[%clk 01:29:20]} {[%emt 00:01:31]}
11. O-O {[%clk 01:27:19]} {[%emt 00:02:03]} dxc4 {[%clk 01:28:41]} {[%emt
00:01:10]} 12. Qa4+ {[%clk 01:27:33]} {[%emt 00:00:16]} Qc6 {[%clk 01:25:20]}
{[%emt 00:03:50]} 13. Qxc6+ {[%clk 01:27:13]} {[%emt 00:00:51]} Nxc6 {[%clk
01:25:42]} {[%emt 00:00:08]} 14. Bxc4 {[%clk 01:27:32]} {[%emt 00:00:11]} Be7
{[%clk 01:25:04]} {[%emt 00:01:08]} 15. Bb2 {[%clk 01:23:59]} {[%emt 00:04:01]}
O-O {[%clk 01:24:48]} {[%emt 00:00:47]} 16. Rfd1 {[%clk 01:15:43]} {[%emt
00:08:46]} Na5 {[%clk 01:22:23]} {[%emt 00:02:56]} 17. Bd3 {[%clk 01:15:07]}
{[%emt 00:01:05]} Rac8 {[%clk 01:19:54]} {[%emt 00:03:00]} 18. Nd2 {[%clk
01:12:20]} {[%emt 00:03:16]} f5 {[%clk 01:13:14]} {[%emt 00:07:11]} 19. Kf1
{[%clk 00:55:42]} {[%emt 00:17:08]} Rc7 {[%clk 01:11:36]} {[%emt 00:02:08]} 20.
Rac1 {[%clk 00:47:17]} {[%emt 00:08:55]} Rfc8 {[%clk 01:09:49]} {[%emt
00:02:18]} 21. Rxc7 {[%clk 00:44:33]} {[%emt 00:03:14]} Rxc7 {[%clk 01:10:05]}
{[%emt 00:00:14]} 22. g4 {[%clk 00:32:00]} {[%emt 00:13:03]} g6 {[%clk
01:05:26]} {[%emt 00:05:09]} 23. gxf5 {[%clk 00:32:24]} {[%emt 00:00:05]} gxf5
{[%clk 01:05:44]} {[%emt 00:00:12]} 24. Ke2 {[%clk 00:31:34]} {[%emt 00:01:20]}
Bd5 {[%clk 01:01:51]} {[%emt 00:04:23]} 25. Rg1+ {[%clk 00:31:09]} {[%emt
00:00:55]} Kh8 {[%clk 01:01:16]} {[%emt 00:01:06]} 26. a4 {[%clk 00:26:35]}
{[%emt 00:05:04]} Nc4 {[%clk 00:59:11]} {[%emt 00:02:35]} 27. Rc1 {[%clk
00:24:46]} {[%emt 00:02:19]} Bg5 {[%clk 00:50:10]} {[%emt 00:09:31]} 28. Rxc4
{[%clk 00:21:43]} {[%emt 00:03:33]} Bxc4 {[%clk 00:50:32]} {[%emt 00:00:08]} 29.
Nxc4 {[%clk 00:22:09]} {[%emt 00:00:03]} Be7 {[%clk 00:49:56]} {[%emt
00:01:07]} 30. Nd6 {[%clk 00:20:22]} {[%emt 00:02:16]} Rc6 {[%clk 00:49:44]}
{[%emt 00:00:42]} 31. Ba3 {[%clk 00:17:03]} {[%emt 00:03:48]} Kg7 {[%clk
00:49:41]} {[%emt 00:00:34]} 32. Nxf5+ {[%clk 00:16:20]} {[%emt 00:01:13]} exf5
{[%clk 00:49:48]} {[%emt 00:00:23]} 33. Bxe7 {[%clk 00:16:46]} {[%emt
00:00:04]} 1-0

[Event "Polofinale MCR junioru 2023"]
[Site "Czech Republic"]
[Date "2023.11.14"]
[Round "5.29"]
[White "Vylicil, Adam"]
[Black "Vlcek, Vojtech"]
[Result "1-0"]
[TimeControl "90 min per 40 moves + 15 min + 30 sec / move from move 1"]
[WhiteFideId "23717556"]
[BlackFideId "23728647"]
[WhiteElo "1896"]
[BlackElo "1703"]

1. d4 {[%clk 01:30:58]} d5 {[%clk 01:30:40]} {[%emt 00:00:20]} 2. Nf3 {[%clk
01:31:20]} {[%emt 00:00:09]} Nf6 {[%clk 01:31:03]} {[%emt 00:00:07]} 3. Bf4
{[%clk 01:31:43]} {[%emt 00:00:07]} Bf5 {[%clk 01:29:52]} {[%emt 00:01:41]} 4.
e3 {[%clk 01:32:09]} {[%emt 00:00:04]} e6 {[%clk 01:30:06]} {[%emt 00:00:17]} 5.
c4 {[%clk 01:32:36]} {[%emt 00:00:03]} c6 {[%clk 01:29:42]} {[%emt 00:00:53]} 6.
Nc3 {[%clk 01:32:30]} {[%emt 00:00:36]} a6 {[%clk 01:29:14]} {[%emt 00:00:59]}
7. c5 {[%clk 01:30:29]} {[%emt 00:02:31]} Nbd7 {[%clk 01:28:54]} {[%emt
00:00:50]} 8. Qb3 {[%clk 01:29:09]} {[%emt 00:01:50]} b5 {[%clk 01:28:18]}
{[%emt 00:01:06]} 9. cxb6 {[%clk 01:01:50]} {[%emt 00:27:49]} Qxb6 {[%clk
01:27:23]} {[%emt 00:01:24]} 10. Qxb6 {[%clk 00:57:18]} {[%emt 00:05:03]} Nxb6
{[%clk 01:27:10]} {[%emt 00:00:44]} 11. Rc1 {[%clk 00:56:00]} {[%emt 00:01:47]}
Nfd7 {[%clk 01:19:58]} {[%emt 00:07:41]} 12. Bc7 {[%clk 00:51:48]} {[%emt
00:04:42]} f6 {[%clk 01:20:10]} {[%emt 00:00:19]} 13. a3 {[%clk 00:45:00]}
{[%emt 00:07:19]} Be7 {[%clk 01:20:11]} {[%emt 00:00:28]} 14. Nh4 {[%clk
00:39:35]} {[%emt 00:05:54]} Bg4 {[%clk 01:18:04]} {[%emt 00:02:38]} 15. h3
{[%clk 00:36:29]} {[%emt 00:03:36]} Bh5 {[%clk 01:18:20]} {[%emt 00:00:14]} 16.
Nb1 {[%clk 00:30:31]} {[%emt 00:06:28]} O-O {[%clk 01:16:03]} {[%emt 00:02:47]}
17. Bxb6 {[%clk 00:25:12]} {[%emt 00:05:48]} Nxb6 {[%clk 01:16:22]} {[%emt
00:00:11]} 18. Rxc6 {[%clk 00:24:24]} {[%emt 00:01:18]} Rfc8 {[%clk 01:15:02]}
{[%emt 00:01:49]} 19. Rxc8+ {[%clk 00:19:07]} {[%emt 00:05:48]} Rxc8 {[%clk
01:15:20]} {[%emt 00:00:12]} 20. Kd2 {[%clk 00:19:19]} {[%emt 00:00:17]} g5
{[%clk 01:10:44]} {[%emt 00:05:05]} 21. Nf3 {[%clk 00:16:00]} {[%emt 00:03:50]}
Bg6 {[%clk 01:10:00]} {[%emt 00:01:15]} 22. Nc3 {[%clk 00:14:47]} {[%emt
00:01:42]} Nc4+ {[%clk 01:09:50]} {[%emt 00:00:40]} 23. Bxc4 {[%clk 00:14:48]}
{[%emt 00:00:29]} dxc4 {[%clk 01:10:10]} {[%emt 00:00:11]} 24. Rc1 {[%clk
00:06:29]} {[%emt 00:08:49]} Bd8 {[%clk 01:08:08]} {[%emt 00:02:32]} 25. e4
{[%clk 00:04:23]} {[%emt 00:02:36]} Ba5 {[%clk 01:08:09]} {[%emt 00:00:28]} 26.
Ke3 {[%clk 00:03:41]} {[%emt 00:01:11]} Rb8 {[%clk 01:07:51]} {[%emt 00:00:49]}
27. Nd2 {[%clk 00:01:49]} {[%emt 00:02:22]} Bc7 {[%clk 01:06:33]} {[%emt
00:01:48]} 28. g3 {[%clk 00:01:09]} {[%emt 00:01:11]} Rxb2 {[%clk 01:04:36]}
{[%emt 00:02:27]} 29. Nxc4 {[%clk 00:01:33]} {[%emt 00:00:06]} Rb3 {[%clk
01:04:46]} {[%emt 00:00:19]} 30. Kd2 {[%clk 00:01:20]} {[%emt 00:00:43]} h5
{[%clk 01:04:22]} {[%emt 00:00:54]} 31. d5 {[%clk 00:00:36]} {[%emt 00:01:15]}
Kf7 {[%clk 00:59:32]} {[%emt 00:05:20]} 32. d6 {[%clk 00:00:46]} {[%emt
00:00:20]} Bd8 {[%clk 00:59:58]} {[%emt 00:00:03]} 33. f3 {[%clk 00:00:48]}
{[%emt 00:00:28]} e5 {[%clk 00:57:59]} {[%emt 00:02:30]} 34. Rb1 {[%clk
00:01:00]} {[%emt 00:00:18]} Rxb1 {[%clk 00:57:58]} {[%emt 00:00:30]} 35. Nxb1
{[%clk 00:01:27]} {[%emt 00:00:03]} Ke6 {[%clk 00:58:22]} {[%emt 00:00:06]} 36.
Nc3 {[%clk 00:01:07]} {[%emt 00:00:50]} Be8 {[%clk 00:58:43]} {[%emt 00:00:09]}
37. Nd5 {[%clk 00:00:49]} {[%emt 00:00:48]} Bb5 {[%clk 00:57:48]} {[%emt
00:01:25]} 38. Nc7+ {[%clk 00:00:34]} {[%emt 00:00:46]} Bxc7 {[%clk 00:57:41]}
{[%emt 00:00:36]} 39. dxc7 {[%clk 00:01:00]} {[%emt 00:00:04]} Kd7 {[%clk
00:58:04]} {[%emt 00:00:06]} 40. Ne3 {[%clk 00:00:43]} {[%emt 00:00:48]} Bc6
{[%clk 00:58:12]} {[%emt 00:00:22]} 41. g4 {[%clk 00:05:10]} {[%emt 00:11:32]}
h4 {[%clk 01:12:57]} {[%emt 00:01:15]} 42. Nd5 {[%clk 00:04:21]} {[%emt
00:01:19]} Bxd5 {[%clk 01:06:52]} {[%emt 00:06:35]} 43. exd5 {[%clk 00:04:49]}
{[%emt 00:00:03]} Kxc7 {[%clk 01:07:16]} {[%emt 00:00:06]} 44. Kd3 {[%clk
00:05:13]} {[%emt 00:00:06]} a5 {[%clk 01:07:06]} {[%emt 00:00:39]} 45. Ke4
{[%clk 00:03:48]} {[%emt 00:01:55]} Kd6 {[%clk 01:06:14]} {[%emt 00:01:22]} 46.
Kf5 {[%clk 00:03:24]} {[%emt 00:00:54]} Kxd5 {[%clk 01:06:38]} {[%emt
00:00:07]} 47. Kxf6 {[%clk 00:03:02]} {[%emt 00:00:51]} Kc4 {[%clk 01:06:44]}
{[%emt 00:00:25]} 48. Kxe5 {[%clk 00:01:25]} {[%emt 00:02:07]} Kb3 {[%clk
01:06:50]} {[%emt 00:00:24]} 49. f4 {[%clk 00:01:51]} {[%emt 00:00:04]} Kxa3
{[%clk 01:06:29]} {[%emt 00:00:51]} 50. fxg5 {[%clk 00:00:58]} {[%emt
00:01:23]} Kb2 {[%clk 01:06:47]} {[%emt 00:00:12]} 51. g6 {[%clk 00:01:09]}
{[%emt 00:00:19]} 1-0

[Event "Polofinale MCR junioru 2023"]
[Site "Czech Republic"]
[Date "2023.11.14"]
[Round "5.30"]
[White "Fizerova, Lucie"]
[Black "Valdman, Jakub"]
[Result "1/2-1/2"]
[TimeControl "90 min per 40 moves + 15 min + 30 sec / move from move 1"]
[WhiteFideId "385115"]
[BlackFideId "23718196"]
[WhiteElo "1886"]
[BlackElo "1594"]

1. e4 {[%clk 01:30:57]} {[%emt 00:00:02]} e5 {[%clk 01:30:53]} {[%emt
00:00:07]} 2. Nf3 {[%clk 01:31:23]} {[%emt 00:00:04]} Nc6 {[%clk 01:31:19]}
{[%emt 00:00:04]} 3. Bc4 {[%clk 01:31:48]} {[%emt 00:00:05]} Nf6 {[%clk
01:31:35]} {[%emt 00:00:15]} 4. Ng5 {[%clk 01:32:10]} {[%emt 00:00:08]} d5
{[%clk 01:31:46]} {[%emt 00:00:19]} 5. exd5 {[%clk 01:32:33]} {[%emt 00:00:07]}
Na5 {[%clk 01:32:07]} {[%emt 00:00:09]} 6. Bb5+ {[%clk 01:32:57]} {[%emt
00:00:05]} c6 {[%clk 01:32:04]} {[%emt 00:00:33]} 7. dxc6 {[%clk 01:33:19]}
{[%emt 00:00:09]} bxc6 {[%clk 01:32:29]} {[%emt 00:00:06]} 8. Bd3 {[%clk
01:33:41]} {[%emt 00:00:07]} Bc5 {[%clk 01:27:11]} {[%emt 00:05:48]} 9. O-O
{[%clk 01:29:05]} {[%emt 00:05:06]} O-O {[%clk 01:24:29]} {[%emt 00:03:13]} 10.
Nc3 {[%clk 01:27:06]} {[%emt 00:02:29]} h6 {[%clk 01:16:31]} {[%emt 00:08:28]}
11. Nge4 {[%clk 01:24:36]} {[%emt 00:02:59]} Nxe4 {[%clk 01:15:25]} {[%emt
00:01:36]} 12. Nxe4 {[%clk 01:20:17]} {[%emt 00:04:49]} Bb6 {[%clk 01:13:50]}
{[%emt 00:02:05]} 13. b4 {[%clk 01:18:51]} {[%emt 00:01:56]} Nb7 {[%clk
01:13:57]} {[%emt 00:00:23]} 14. Bb2 {[%clk 01:17:33]} {[%emt 00:01:48]} f5
{[%clk 01:06:17]} {[%emt 00:08:10]} 15. Bc4+ {[%clk 01:15:34]} {[%emt
00:02:29]} Kh8 {[%clk 01:06:19]} {[%emt 00:00:28]} 16. Nc3 {[%clk 01:12:21]}
{[%emt 00:03:43]} Qh4 {[%clk 01:03:50]} {[%emt 00:03:00]} 17. Qe2 {[%clk
01:09:38]} {[%emt 00:03:13]} Bc7 {[%clk 00:34:10]} {[%emt 00:30:10]} 18. h3
{[%clk 01:01:34]} {[%emt 00:08:33]} Rf6 {[%clk 00:25:41]} {[%emt 00:08:58]} 19.
f4 {[%clk 00:53:14]} {[%emt 00:08:50]} Be6 {[%clk 00:19:23]} {[%emt 00:06:49]}
20. Ba6 {[%clk 00:49:31]} {[%emt 00:04:14]} Nd8 {[%clk 00:16:48]} {[%emt
00:03:04]} 21. Kh1 {[%clk 00:44:08]} {[%emt 00:05:52]} Rg6 {[%clk 00:13:46]}
{[%emt 00:03:32]} 22. Qf2 {[%clk 00:41:54]} {[%emt 00:02:44]} Qxf4 {[%clk
00:12:44]} {[%emt 00:01:33]} 23. Qxf4 {[%clk 00:41:59]} {[%emt 00:00:24]} exf4
{[%clk 00:13:11]} {[%emt 00:00:04]} 24. Rae1 {[%clk 00:40:41]} {[%emt
00:01:48]} Rb8 {[%clk 00:13:18]} {[%emt 00:00:24]} 25. a3 {[%clk 00:39:41]}
{[%emt 00:02:00]} Nf7 {[%clk 00:13:22]} {[%emt 00:00:56]} 26. Rf2 {[%clk
00:37:31]} {[%emt 00:02:40]} c5 {[%clk 00:09:02]} {[%emt 00:04:51]} 27. b5
{[%clk 00:35:38]} {[%emt 00:02:23]} Be5 {[%clk 00:08:45]} {[%emt 00:00:46]} 28.
Rfe2 {[%clk 00:30:28]} {[%emt 00:05:40]} Bxc3 {[%clk 00:08:50]} {[%emt
00:00:26]} 29. Bxc3 {[%clk 00:30:38]} {[%emt 00:00:19]} Bd5 {[%clk 00:09:08]}
{[%emt 00:00:13]} 30. Kh2 {[%clk 00:26:33]} {[%emt 00:04:34]} Nd6 {[%clk
00:06:10]} {[%emt 00:03:28]} 31. Be5 {[%clk 00:24:15]} {[%emt 00:02:48]} Rb6
{[%clk 00:06:11]} {[%emt 00:00:30]} 32. Bxf4 {[%clk 00:21:58]} {[%emt
00:02:46]} Nxb5 {[%clk 00:06:27]} {[%emt 00:00:14]} 33. Bxb5 {[%clk 00:20:32]}
{[%emt 00:01:56]} Rxb5 {[%clk 00:06:53]} {[%emt 00:00:05]} 34. g3 {[%clk
00:17:28]} {[%emt 00:03:33]} Rb2 {[%clk 00:02:52]} {[%emt 00:04:32]} 35. c3
{[%clk 00:17:03]} {[%emt 00:00:55]} Be4 {[%clk 00:03:11]} {[%emt 00:00:11]} 36.
Be3 {[%clk 00:15:34]} {[%emt 00:01:58]} Bd3 {[%clk 00:02:58]} {[%emt 00:00:43]}
1/2-1/2